bitfinex/quotes_SOLUSD_20251001
["timestamp","ask_amount","ask_price","bid_price","bid_amount"]
[1759294703965,0.71,208.48,208.46,33.86]
[1759294704567,5.50666752,208.48,208.46,33.86]
[1759294706247,4.79666752,208.48,208.46,33.86]
[1759294707354,34.39559401,208.46,208.45,37.4]
[1759294707554,35.10559401,208.46,208.45,71.26]
[1759294708241,54.30187102,208.46,208.45,71.26]
[1759294717649,54.30187102,208.46,208.31,20.8]
[1759294717847,13.59559401,208.4,208.32,37.4]
[1759294718051,23.01069142,208.39,208.32,37.4]
[1759294718248,16.79704371,208.37,208.32,37.4]
[1759294718451,20.8,208.34,208.32,37.4]
[1759294718662,21.51,208.34,208.32,37.4]
[1759294719047,20.8,208.34,208.33,33.86]
[1759294719259,21.51,208.34,208.33,33.86]
[1759294720368,40.7166464,208.34,208.33,33.86]
[1759294721252,40.0066464,208.34,208.33,33.86]
[1759294723458,35.2068,208.34,208.33,34.53]
[1759294723875,14.4068,208.34,208.33,34.53]
[1759294724068,23.97869719,208.52,208.33,34.53]
[1759294724069,14.30559401,208.43,208.33,34.53]
[1759294724375,14.40126731,208.39,208.34,0.67]
[1759294724555,20.8,208.4,208.35,33.86]
[1759294724757,14.40126731,208.4,208.36,0.67]
[1759294724956,14.40126731,208.4,208.37,34.53]
[1759294725483,25.59869475,208.39,208.37,33.86]
[1759294725677,20.8,208.39,208.37,33.86]
[1759294725889,20.8,208.39,208.37,34.53]
[1759294726260,20.8,208.39,208.37,33.86]
[1759294726557,20.8,208.39,208.37,34.53]
[1759294727974,20.8,208.39,208.38,0.67]
[1759294729068,39.99973469,208.4,208.37,33.86]
[1759294729279,35.20126731,208.4,208.37,34.53]
[1759294729677,35.20126731,208.4,208.37,33.86]
[1759294729875,35.20126731,208.4,208.37,34.53]
[1759294730180,20.8,208.4,208.37,34.53]
[1759294730382,25.59846844,208.4,208.37,34.53]
[1759294730786,25.59846844,208.4,208.37,33.86]
[1759294731082,35.20057602,208.4,208.37,34.53]
[1759294731282,20.8,208.4,208.37,33.86]
[1759294731668,25.59853468,208.4,208.37,33.86]
[1759294732388,20.8,208.4,208.37,33.86]
[1759294732692,35.20057602,208.4,208.37,33.86]
[1759294732887,20.8,208.4,208.37,34.53]
[1759294733805,14.40057602,208.41,208.38,0.72]
[1759294735202,19.19886,208.41,208.37,33.86]
[1759294735371,0.67,208.4,208.32,37.4]
[1759294735577,13.59559401,208.37,208.32,37.4]
[1759294735776,0.67,208.36,208.33,33.86]
[1759294735975,0.67,208.35,208.33,33.86]
[1759294736189,0.67,208.34,208.33,33.86]
[1759294736391,5.4698464,208.34,208.33,33.86]
[1759294737993,25.5998464,208.34,208.33,33.86]
[1759294738195,26.2698464,208.34,208.33,33.86]
[1759294739594,40.67526283,208.34,208.33,33.86]
[1759294744079,40.00526283,208.34,208.33,33.86]
[1759294745400,40.67526283,208.34,208.33,33.86]
[1759294750289,19.87526283,208.34,208.33,33.86]
[1759294752512,14.40541643,208.34,208.33,34.58]
[1759294752686,25.59916602,208.37,208.33,34.58]
[1759294752887,25.59916602,208.37,208.34,0.72]
[1759294753105,25.59916602,208.37,208.35,33.86]
[1759294753824,40.00250759,208.37,208.35,33.86]
[1759294754308,40.00250759,208.37,208.35,34.58]
[1759294754309,14.40334157,208.37,208.35,34.58]
[1759294754509,4.7989534,208.38,208.35,33.86]
[1759294754710,19.20229497,208.38,208.35,33.86]
[1759294755210,47.06177893,208.4,208.36,0.72]
[1759294755211,26.26867715,208.4,208.36,0.72]
[1759294755414,14.40265008,208.38,208.37,33.84]
[1759294755589,25.59867715,208.4,208.37,33.84]
[1759294755790,25.59867715,208.4,208.37,34.56]
[1759294755990,14.40195866,208.39,208.37,34.56]
[1759294756390,14.40195866,208.39,208.37,33.84]
[1759294757005,19.2006656,208.39,208.37,33.84]
[1759294757609,14.40195866,208.39,208.37,33.84]
[1759294759807,4.79847606,208.4,208.37,34.51]
[1759294760006,26.25051763,208.43,208.37,33.84]
[1759294760007,4.79825462,208.41,208.37,33.84]
[1759294760207,5.45825462,208.41,208.37,34.51]
[1759294762120,19.85952193,208.41,208.37,34.51]
[1759294763122,5.45825462,208.41,208.37,34.51]
[1759294763297,14.40126731,208.4,208.37,34.51]
[1759294764599,14.40126731,208.4,208.38,37.42]
[1759294765120,19.19975273,208.4,208.38,37.42]
[1759294765617,4.79848542,208.4,208.38,37.42]
[1759294767512,4.79824322,208.41,208.38,38.13]
[1759294768309,4.79824322,208.41,208.38,37.42]
[1759294768722,5.46824322,208.41,208.38,37.42]
[1759294769325,4.79803555,208.42,208.38,38.13]
[1759294769531,14.26559401,208.45,208.39,0.71]
[1759294769731,19.06290751,208.45,208.4,33.84]
[1759294770021,0.67,208.44,208.4,33.84]
[1759294770227,0.67,208.43,208.4,33.84]
[1759294771827,5.46793106,208.43,208.4,33.84]
[1759294772627,0.67,208.42,208.4,33.84]
[1759294773605,4.79793106,208.43,208.4,33.84]
[1759294773606,0.67,208.41,208.4,33.84]
[1759294773814,4.79823424,208.41,208.4,33.84]
[1759294774431,4.79804422,208.42,208.4,33.84]
[1759294774734,5.46804422,208.42,208.4,33.84]
[1759294775425,4.79778189,208.43,208.4,34.55]
[1759294775733,5.46778189,208.43,208.4,33.84]
[1759294775931,18.39313766,208.44,208.4,33.84]
[1759294776228,19.06313766,208.44,208.4,33.84]
[1759294776425,18.39313766,208.44,208.4,33.84]
[1759294776635,0.67,208.43,208.4,33.84]
[1759294777126,4.79780221,208.43,208.4,33.84]
[1759294777335,5.46780221,208.43,208.4,33.84]
[1759294777624,4.79758788,208.44,208.4,34.55]
[1759294778002,5.46735869,208.45,208.4,34.55]
[1759294778630,0.67,208.44,208.4,34.55]
[1759294779017,5.46758945,208.44,208.4,34.55]
[1759294782811,0.67,208.45,208.4,34.55]
[1759294783313,4.79686627,208.47,208.41,0.71]
[1759294783615,4.79686627,208.47,208.42,33.82]
[1759294783815,5.46686627,208.47,208.43,0.71]
[1759294784429,0.67,208.46,208.42,33.82]
[1759294784638,0.67,208.46,208.42,34.53]
[1759294784832,5.46713841,208.46,208.42,34.53]
[1759294785038,4.79713841,208.46,208.42,34.53]
[1759294791219,4.79681818,208.48,208.42,33.82]
[1759294791532,4.79681818,208.48,208.43,0.71]
[1759294791833,4.79681818,208.48,208.42,38.61796279]
[1759294791834,0.67,208.51,208.45,20.8]
[1759294792024,5.46593304,208.51,208.46,34.51]
[1759294792220,5.46593304,208.51,208.47,0.71]
[1759294792622,0.67,208.5,208.46,33.8]
[1759294792821,0.67,208.5,208.46,34.51]
[1759294793621,17.50534274,208.52,208.46,33.8]
[1759294793838,16.78534274,208.52,208.46,33.8]
[1759294794030,0.72,208.51,208.46,33.8]
[1759294794221,0.72,208.5,208.46,33.8]
[1759294794619,4.79622426,208.5,208.46,34.47]
[1759294794831,4.79622426,208.5,208.47,0.67]
[1759294795745,4.79593304,208.51,208.47,0.67]
[1759294795933,5.51593304,208.51,208.47,0.67]
[1759294796132,4.79593304,208.51,208.47,0.67]
[1759294796330,5.51572692,208.52,208.48,0.67]
[1759294796646,4.79572692,208.52,208.49,34.47]
[1759294796832,4.99549491,208.53,208.49,34.47]
[1759294797029,16.98417759,208.53,208.49,33.8]
[1759294797229,0.72,208.52,208.49,33.8]
[1759294798124,0.72,208.52,208.5,37.4]
[1759294798340,5.51575407,208.52,208.5,37.4]
[1759294799124,4.79575407,208.52,208.5,37.4]
[1759294800240,0.2,208.53,208.51,0.67]
[1759294800443,0.2,208.53,208.52,33.78]
[1759294800921,5.71547307,208.53,208.52,33.78]
[1759294801127,0.2,208.53,208.52,33.78]
[1759294801335,4.99547307,208.53,208.52,33.78]
[1759294803426,0.2,208.53,208.52,33.78]
[1759294807553,0.2,208.53,208.52,34.45]
[1759294807752,0.2,208.53,208.52,39.24570305]
[1759294808331,0.2,208.55,208.52,39.24570305]
[1759294808332,0.2,208.55,208.54,20.8]
[1759294808743,0.2,208.55,208.54,54.58]
[1759294810749,0.92,208.55,208.54,33.78]
[1759294811040,4.99501318,208.55,208.54,33.78]
[1759294811666,0.2,208.55,208.54,33.78]
[1759294812950,0.2,208.55,208.54,34.32]
[1759294813146,0.2,208.55,208.54,55.12]
[1759294813339,0.2,208.57,208.56,20.8]
[1759294813534,0.2,208.57,208.56,54.56]
[1759294813765,0.2,208.57,208.56,59.69478327]
[1759294813945,0.2,208.61,208.56,71.68174145]
[1759294814148,0.2,208.61,208.57,0.14]
[1759294814469,0.2,208.61,208.52,13.87991715]
[1759294814470,0.2,208.61,208.6,20.8]
[1759294814775,0.2,208.61,208.6,54.56]
[1759294815962,0.2,208.61,208.6,59.49386385]
[1759294816171,0.2,208.61,208.6,54.56]
[1759294819041,0.2,208.61,208.6,20.8]
[1759294819243,0.86,208.61,208.6,54.56]
[1759294820780,0.2,208.61,208.6,54.56]
[1759294821644,0.2,208.61,208.6,54.7]
[1759294822076,0.2,208.61,208.6,59.35386385]
[1759294822651,0.2,208.61,208.6,38.55386385]
[1759294822950,0.2,208.61,208.6,38.69386385]
[1759294823148,0.2,208.61,208.6,33.76]
[1759294824471,0.2,208.61,208.6,38.55386385]
[1759294824777,0.2,208.61,208.6,38.69386385]
[1759294825488,0.2,208.61,208.6,59.29386385]
[1759294827281,0.2,208.61,208.6,59.15386385]
[1759294827656,0.87,208.61,208.6,20.8]
[1759294827918,0.2,208.61,208.6,54.54]
[1759294829667,0.2,208.61,208.6,59.33386385]
[1759294835786,0.2,208.61,208.6,54.54]
[1759294836485,0.87,208.61,208.6,54.54]
[1759294836794,0.2,208.61,208.6,54.54]
[1759294836995,0.87,208.61,208.6,20.8]
[1759294837307,0.87,208.61,208.6,54.52]
[1759294837970,0.87,208.61,208.6,91.88]
[1759294844986,0.2,208.61,208.6,91.88]
[1759294845187,0.87,208.61,208.6,91.88]
[1759294848092,0.2,208.61,208.6,91.88]
[1759294849492,0.2,208.61,208.6,96.67386385]
[1759294851395,0.87,208.61,208.6,96.67386385]
[1759294851993,0.2,208.61,208.6,96.67386385]
[1759294852698,0.2,208.61,208.6,96.81386385]
[1759294853812,0.2,208.61,208.6,96.67386385]
[1759294854333,0.2,208.61,208.6,100.66595301]
[1759294858097,0.2,208.61,208.6,117.27386385]
[1759294858893,0.2,208.61,208.6,117.41386385]
[1759294860013,0.2,208.61,208.6,117.27386385]
[1759294860403,0.2,208.61,208.6,145.693781]
[1759294860604,1e-08,208.61,208.6,151.05622388]
[1759294860811,1e-08,208.62,208.61,57.08991715]
[1759294861120,0.2,208.63,208.61,57.22991715]
[1759294861121,1e-08,208.63,208.61,57.22991715]
[1759294861323,1e-08,208.63,208.62,53.59214922]
[1759294861519,1e-08,208.63,208.62,90.92991715]
[1759294861702,1e-08,208.63,208.62,91.40925757]
[1759294861904,1e-08,208.63,208.62,112.00925757]
[1759294862231,1e-08,208.66,208.65,14.4]
[1759294862532,1e-08,208.66,208.65,52.89271507]
[1759294862734,1e-08,208.66,208.65,53.03271507]
[1759294863404,1e-08,208.66,208.65,116.32263222]
[1759294863727,1e-08,208.66,208.65,141.66696575]
[1759294864325,1e-08,208.68,208.67,20.8]
[1759294864503,1e-08,208.68,208.67,90.78991715]
[1759294864825,1e-08,208.68,208.67,90.92991715]
[1759294865202,1e-08,208.7,208.69,56.80559401]
[1759294865526,1e-08,208.7,208.69,81.88171359]
[1759294865845,1e-08,208.7,208.69,104.4118714]
[1759294866004,1e-08,208.7,208.69,100.41820135]
[1759294866416,1e-08,208.7,208.69,104.40902635]
[1759294867622,1e-08,208.7,208.69,124.40902635]
[1759294868222,1e-08,208.72,208.71,27.99559401]
[1759294868533,1e-08,208.72,208.71,34.21421814]
[1759294868702,0.67000001,208.72,208.71,67.89421814]
[1759294869122,1e-08,208.72,208.71,67.89421814]
[1759294869528,0.67000001,208.72,208.71,53.49421814]
[1759294869709,0.67000001,208.72,208.71,5.93430099]
[1759294869909,0.67000001,208.72,208.71,39.61430099]
[1759294870118,0.67000001,208.72,208.71,33.68]
[1759294870848,5.46110771,208.72,208.71,33.68]
[1759294871534,5.46110771,208.72,208.64,5.88230099]
[1759294871745,0.67,208.71,208.65,33.68]
[1759294872113,0.67,208.7,208.64,5.88230099]
[1759294872309,0.67,208.69,208.6,37.36]
[1759294872637,0.67,208.68,208.61,33.68]
[1759294872838,0.67,208.67,208.61,33.68]
[1759294873222,0.67,208.67,208.62,33.68]
[1759294873436,0.67,208.66,208.62,33.68]
[1759294873646,5.46292114,208.65,208.62,33.68]
[1759294873938,28.39457054,208.69,208.62,33.68]
[1759294873939,0.67,208.64,208.62,33.68]
[1759294874126,0.67,208.63,208.62,33.68]
[1759294878726,5.46324966,208.63,208.6,37.36]
[1759294879040,0.72,208.62,208.61,33.68]
[1759294882747,0.72,208.64,208.61,33.68]
[1759294882933,0.72,208.63,208.61,33.68]
[1759294883242,0.72,208.62,208.61,33.68]
[1759294884049,0.72,208.62,208.6,37.36]
[1759294884217,20.8,208.6,208.52,3.98401133]
[1759294884416,2.12060363,208.61,208.45,11.2812087]
[1759294884417,1.41060363,208.57,208.45,11.2812087]
[1759294884644,21.51,208.56,208.45,4.79730641]
[1759294884827,0.71,208.55,208.43,4.79777383]
[1759294885022,0.71,208.54,208.42,4.70401133]
[1759294885221,20.8,208.5,208.43,33.68]
[1759294885423,0.71,208.49,208.43,33.68]
[1759294885617,20.8,208.5,208.43,33.68]
[1759294885831,0.71,208.48,208.41,4.79805831]
[1759294886129,13.59559401,208.53,208.42,39.9934121]
[1759294886130,0.71,208.51,208.42,39.9934121]
[1759294886332,0.71,208.51,208.44,4.79754365]
[1759294886536,0.71,208.51,208.45,33.68]
[1759294886845,0.71,208.51,208.45,39.2734121]
[1759294887024,0.71,208.53,208.46,0.72]
[1759294887349,0.71,208.53,208.46,6.3134121]
[1759294887729,0.71,208.53,208.47,6.3134121]
[1759294888045,0.71,208.53,208.48,33.7]
[1759294888351,0.71,208.53,208.49,4.79639311]
[1759294888842,0.71,208.55,208.49,17.50737589]
[1759294889946,4.79409367,208.59,208.49,17.50737589]
[1759294889947,25.5808282,208.59,208.5,37.38]
[1759294890123,0.71,208.54,208.51,33.7]
[1759294890324,0.71,208.53,208.51,33.7]
[1759294890940,30.37492187,208.59,208.51,33.7]
[1759294891149,0.71,208.59,208.51,33.7]
[1759294891331,0.71,208.59,208.52,0.72]
[1759294891533,0.71,208.58,208.52,0.72]
[1759294891852,0.71,208.58,208.52,4.79570305]
[1759294892240,19.18409921,208.6,208.52,4.79570305]
[1759294892432,0.71,208.59,208.52,4.79570305]
[1759294892752,19.18409921,208.6,208.52,4.79570305]
[1759294892753,0.71,208.58,208.52,4.79570305]
[1759294896552,0.71,208.57,208.54,20.8]
[1759294896728,13.59559401,208.61,208.55,33.7]
[1759294896928,0.71,208.6,208.55,33.7]
[1759294897130,19.89292869,208.62,208.56,0.72]
[1759294897346,0.71,208.61,208.55,33.7]
[1759294897741,14.38952442,208.62,208.55,33.7]
[1759294897953,14.38952442,208.62,208.56,0.72]
[1759294898540,15.09952442,208.62,208.57,4.79455338]
[1759294898858,0.71,208.61,208.58,33.7]
[1759294899746,0.71,208.63,208.58,38.49424707]
[1759294899941,0.71,208.62,208.58,38.49424707]
[1759294900448,15.09607428,208.66,208.59,0.72]
[1759294900652,15.09607428,208.66,208.61,20.8]
[1759294900964,14.38607428,208.66,208.62,33.7]
[1759294901171,0.71,208.65,208.62,33.7]
[1759294901670,0.71,208.67,208.62,38.4932656]
[1759294901970,5.50175363,208.7,208.65,20.8]
[1759294902149,0.71,208.69,208.66,33.7]
[1759294902349,0.71,208.68,208.66,33.7]
[1759294902578,0.71,208.67,208.66,33.7]
[1759294902874,0.71,208.67,208.66,71.08]
[1759294903542,0.71,208.69,208.66,71.08]
[1759294903872,18.38681402,208.72,208.66,71.08]
[1759294904177,0.71,208.68,208.66,71.08]
[1759294904366,18.38681402,208.72,208.66,71.08]
[1759294904673,0.71,208.68,208.66,71.08]
[1759294906068,5.50170993,208.7,208.66,71.08]
[1759294906275,0.71,208.69,208.66,71.08]
[1759294906570,0.71,208.68,208.66,71.08]
[1759294907065,5.50170993,208.7,208.66,71.08]
[1759294907274,0.71,208.69,208.66,71.08]
[1759294910273,0.71,208.68,208.66,71.08]
[1759294912274,5.50158655,208.7,208.66,71.08]
[1759294912572,0.71,208.69,208.66,71.08]
[1759294915979,0.65000001,208.72,208.67,0.72]
[1759294916166,4.7911171,208.72,208.68,33.68]
[1759294916484,0.65,208.71,208.68,33.68]
[1759294919561,4.7911171,208.72,208.68,34.4]
[1759294919769,1e-08,208.72,208.69,0.72]
[1759294920086,1e-08,208.72,208.7,33.68]
[1759294920288,1e-08,208.72,208.7,34.4]
[1759294920469,1e-08,208.72,208.71,0.72]
[1759294920668,0.2,208.74,208.73,20.8]
[1759294920884,0.2,208.74,208.73,55.2]
[1759294921899,0.2,208.74,208.73,59.99087816]
[1759294923705,0.2,208.74,208.73,65.58429026]
[1759294924678,0.2,208.74,208.73,79.46420741]
[1759294925667,0.2,208.74,208.73,65.58429026]
[1759294926679,0.2,208.74,208.73,79.46420741]
[1759294927306,0.2,208.74,208.73,65.58429026]
[1759294930572,1e-08,208.74,208.73,79.46420741]
[1759294930772,0.2,208.82,208.74,13.87991715]
[1759294930968,0.2,208.82,208.78,20.8]
[1759294931222,0.2,208.82,208.81,20.8]
[1759294931369,0.2,208.82,208.81,54.46]
[1759294931793,0.2,208.82,208.81,55.18]
[1759294932581,0.2,208.82,208.81,65.56245477]
[1759294936179,0.2,208.82,208.81,94.37245477]
[1759294936380,0.2,208.82,208.81,65.56245477]
[1759294938209,0.2,208.82,208.81,64.84245477]
[1759294938382,0.85,208.82,208.81,5.5934121]
[1759294938586,0.85,208.82,208.81,39.2334121]
[1759294938887,0.2,208.82,208.81,44.02245477]
[1759294940906,0.2,208.82,208.81,44.72245477]
[1759294944497,0.2,208.82,208.81,58.60237192]
[1759294945099,0.2,208.82,208.81,95.92237192]
[1759294948590,0.2,208.82,208.81,116.52237192]
[1759294948793,1e-08,208.82,208.81,95.92237192]
[1759294951115,1e-08,208.84,208.83,13.59559401]
[1759294951327,1e-08,208.84,208.83,47.51991715]
[1759294951496,1e-08,208.84,208.83,53.79332925]
[1759294952996,1e-08,208.84,208.83,58.58191326]
[1759294955006,1e-08,208.84,208.83,72.98191326]
[1759294956395,1e-08,208.84,208.83,259.88840102]
[1759294956720,1e-08,208.84,208.83,127.08840102]
[1759294957721,1e-08,208.84,208.83,131.05984593]
[1759294957898,1e-08,208.84,208.83,135.23429655]
[1759294958304,1e-08,208.84,208.83,131.26285164]
[1759294958710,0.1,208.92,208.91,13.87991715]
[1759294959024,0.1,208.92,208.91,47.49991715]
[1759294959924,0.1,208.92,208.91,52.28666742]
[1759294960496,0.81,208.92,208.91,52.28666742]
[1759294964132,0.1,208.92,208.91,52.28666742]
[1759294964729,0.1,208.92,208.91,57.88007952]
[1759294966523,0.81,208.92,208.91,57.88007952]
[1759294970035,0.81,208.92,208.91,95.18007952]
[1759294970725,0.1,208.92,208.91,95.18007952]
[1759294971516,0.1,208.92,208.91,95.86007952]
[1759294972016,0.1,208.92,208.91,95.18007952]
[1759294972612,0.81,208.92,208.91,61.56007952]
[1759294972848,0.81,208.92,208.91,95.16007952]
[1759294973228,0.1,208.92,208.91,95.16007952]
[1759294973523,0.1,208.92,208.91,61.56007952]
[1759294973728,0.1,208.92,208.91,95.16007952]
[1759294974939,0.77,208.92,208.91,47.68016237]
[1759294975128,0.77,208.92,208.91,81.28016237]
[1759294975513,0.77,208.92,208.91,76.4934121]
[1759294977221,7.75989349,208.92,208.84,3.6998663]
[1759294977420,2.20337234,208.88,208.85,43.66]
[1759294977621,2.20337234,208.86,208.85,43.66]
[1759294977913,13.87991715,208.88,208.85,43.66]
[1759294978124,13.59559401,208.88,208.85,43.66]
[1759294978328,4.78766696,208.87,208.85,43.66]
[1759294978546,13.59559401,208.86,208.85,43.66]
[1759294978716,13.87991715,208.86,208.85,43.66]
[1759294980526,5.07221933,208.86,208.85,43.66]
[1759294980841,4.78789619,208.86,208.85,43.66]
[1759294981222,11.96879827,208.88,208.85,62.78885389]
[1759294981223,13.59559401,208.88,208.85,62.78885389]
[1759294982021,18.38303177,208.88,208.85,62.78885389]
[1759294983425,30.35162617,208.88,208.85,62.78885389]
[1759294983945,1.69259135,208.87,208.85,43.66]
[1759294984920,4.78789619,208.86,208.85,43.66]
[1759294987135,4.78766696,208.87,208.85,43.66]
[1759294988151,4.7873986,208.89,208.85,43.66]
[1759294988320,4.78700195,208.9,208.85,60.12918056]
[1759294988529,0.1,208.92,208.86,16.46918056]
[1759294988530,4.8866709,208.92,208.86,16.46918056]
[1759294988849,0.1,208.92,208.87,34.34]
[1759294989029,4.88652708,208.92,208.88,16.46918056]
[1759294989225,4.88652708,208.92,208.89,33.62]
[1759294989432,0.1,208.92,208.89,33.62]
[1759294989635,4.8865609,208.92,208.89,49.36918056]
[1759294991442,4.8865609,208.92,208.89,50.08918056]
[1759294991635,0.1,208.92,208.9,0.72]
[1759294991944,0.1,208.92,208.91,33.62]
[1759294992144,4.88652115,208.92,208.91,33.62]
[1759294994250,0.1,208.92,208.91,33.62]
[1759294994635,4.88652115,208.92,208.91,33.62]
[1759294994836,0.1,208.92,208.91,33.62]
[1759294996050,4.88652115,208.92,208.91,33.62]
[1759294997441,18.48211516,208.92,208.91,33.62]
[1759294998546,18.7664383,208.92,208.91,33.62]
[1759294998757,13.59559401,208.91,208.85,53.04918056]
[1759294998958,13.59559401,208.91,208.86,33.62]
[1759294999255,13.59559401,208.91,208.86,34.34]
[1759294999447,13.59559401,208.91,208.86,49.36918056]
[1759295000236,16.75442794,208.9,208.86,49.36918056]
[1759295001166,15.00386222,208.89,208.86,15.74918056]
[1759295001367,15.00386222,208.89,208.85,37.3]
[1759295001368,1.40826821,208.87,208.85,37.3]
[1759295001534,13.59559401,208.85,208.78,0.68]
[1759295001734,15.00386222,208.81,208.79,37.32]
[1759295001958,15.28818536,208.8,208.79,37.32]
[1759295002162,0.28432314,208.79,208.71,0.68]
[1759295002344,4.79018969,208.76,208.72,46.54]
[1759295002537,4.79018969,208.76,208.72,47.22]
[1759295002972,4.79018969,208.76,208.73,0.68]
[1759295003137,4.79018969,208.76,208.74,33.62]
[1759295004168,13.59559401,208.75,208.74,33.62]
[1759295004572,18.38601317,208.75,208.74,33.62]
[1759295010660,18.38601317,208.75,208.74,34.28]
[1759295010872,18.38555425,208.77,208.74,34.28]
[1759295011176,4.78971599,208.79,208.75,0.66]
[1759295011380,13.59559401,208.83,208.76,33.62]
[1759295011579,0.28432314,208.82,208.77,0.66]
[1759295011754,0.28432314,208.82,208.78,33.62]
[1759295012154,13.59559401,208.83,208.78,34.28]
[1759295012457,13.59559401,208.83,208.79,0.66]
[1759295012771,13.59559401,208.81,208.8,33.62]
[1759295014951,18.38463668,208.81,208.8,33.62]
[1759295015551,18.38463668,208.81,208.8,34.28]
[1759295015777,4.78904267,208.81,208.8,34.28]
[1759295015950,13.59559401,208.83,208.8,34.28]
[1759295015951,18.38439345,208.83,208.8,34.28]
[1759295016153,18.38439345,208.83,208.81,0.66]
[1759295016361,4.78879944,208.83,208.82,0.66]
[1759295016956,11.9708868,208.84,208.82,0.66]
[1759295017158,25.56648081,208.84,208.83,33.64]
[1759295017366,11.9708868,208.84,208.83,34.3]
[1759295022660,11.9708868,208.84,208.83,71.64]
[1759295023278,4.78789619,208.86,208.83,71.64]
[1759295023455,4.78835472,208.84,208.83,70.98]
[1759295023660,5.07267786,208.84,208.83,71.64]
[1759295023895,4.78835472,208.84,208.83,71.64]
[1759295024063,11.96842656,208.89,208.83,71.64]
[1759295024262,13.59559401,208.91,208.84,0.66]
[1759295024467,13.59559401,208.9,208.84,0.66]
[1759295025588,16.75523001,208.89,208.84,0.66]
[1759295025968,15.14602379,208.88,208.83,37.34]
[1759295026170,0.14216157,208.87,208.84,33.62]
[1759295026689,13.59559401,208.86,208.84,33.62]
[1759295026992,13.59559401,208.84,208.83,37.34]
[1759295027180,15.00386222,208.84,208.83,37.34]
[1759295027691,19.79221694,208.84,208.83,37.34]
[1759295028186,19.79221694,208.84,208.83,70.96]
[1759295029471,18.38394873,208.84,208.83,70.96]
[1759295029993,19.79221694,208.84,208.83,70.96]
[1759295033374,18.66827187,208.84,208.83,71.63]
[1759295033690,18.66827187,208.84,208.83,70.96]
[1759295036796,18.66827187,208.84,208.83,71.63]
[1759295038798,18.38394873,208.84,208.83,71.63]
[1759295041982,18.38394873,208.84,208.83,70.96]
[1759295043293,32.84039332,208.84,208.83,37.34]
[1759295043803,30.63915867,208.84,208.83,37.34]
[1759295044405,30.63915867,208.84,208.83,70.96]
[1759295044610,30.35483553,208.84,208.83,71.63]
[1759295046713,4.78811451,208.86,208.83,71.63]
[1759295046886,18.38234428,208.91,208.84,0.67]
[1759295047084,0.1,208.93,208.85,33.62]
[1759295047311,0.1,208.93,208.88,20.8]
[1759295047512,4.88631733,208.93,208.89,33.62]
[1759295047704,4.88631733,208.93,208.9,0.67]
[1759295048012,4.88631733,208.93,208.91,33.62]
[1759295048189,4.88631733,208.93,208.92,0.67]
[1759295049006,13.59559401,208.92,208.88,0.67]
[1759295049315,13.59559401,208.92,208.89,33.62]
[1759295050116,13.59559401,208.92,208.9,0.67]
[1759295050317,16.85204747,208.93,208.9,0.67]
[1759295050318,4.78675027,208.91,208.9,0.67]
[1759295050618,4.78675027,208.91,208.9,33.62]
[1759295051196,4.78675027,208.91,208.9,34.29]